bitfinex-derivatives/quotes_BTCF0:USTF0_20240902
["timestamp","ask_amount","ask_price","bid_price","bid_amount"]
[1725298331868,0.2044,58438.0,58437.0,0.08581345]
[1725298332275,0.289956,58438.0,58437.0,0.00025645]
[1725298332569,1.403316,58438.0,58428.0,0.08557]
[1725298332754,0.0004,58429.0,58425.0,0.0048]
[1725298332958,0.0004,58427.0,58426.0,0.133174]
[1725298333460,0.0004,58427.0,58425.0,0.0048]
[1725298333761,0.0004,58426.0,58425.0,0.090375]
[1725298333962,0.0014,58429.0,58426.0,0.0046]
[1725298334266,0.0024,58429.0,58428.0,0.0004]
[1725298334766,0.0014,58429.0,58428.0,0.0004]
[1725298334968,0.086969,58429.0,58428.0,0.0004]
[1725298335270,0.087569,58429.0,58428.0,0.0004]
[1725298335469,0.086569,58429.0,58428.0,0.085971]
[1725298336363,0.087569,58429.0,58428.0,0.085971]
[1725298336768,0.002,58429.0,58428.0,0.085971]
[1725298337171,0.002,58429.0,58428.0,1.399411]
[1725298337373,0.001,58429.0,58428.0,0.685971]
[1725298337559,0.001,58429.0,58428.0,0.089971]
[1725298337560,0.002,58429.0,58428.0,0.089971]
[1725298338276,0.002,58429.0,58428.0,0.136371]
[1725298340472,0.002,58429.0,58428.0,0.089971]
[1725298343479,0.002,58429.0,58428.0,0.289971]
[1725298343777,0.002,58429.0,58428.0,1.488982]
[1725298347276,0.002,58429.0,58428.0,1.574553]
[1725298347473,0.00025668,58432.0,58431.0,0.256698]
[1725298347781,0.00025668,58432.0,58431.0,0.257098]
[1725298348079,0.00025668,58432.0,58431.0,1.370538]
[1725298348280,0.00025668,58432.0,58431.0,1.466538]
[1725298348985,6.8e-07,58432.0,58431.0,1.466538]
[1725298349284,6.8e-07,58432.0,58431.0,1.552104]
[1725298349586,6.8e-07,58432.0,58431.0,1.6240377]
[1725298349785,6.8e-07,58432.0,58431.0,1.556104]
[1725298350184,0.046,58453.0,58452.0,0.17107]
[1725298350483,0.3229,58478.0,58470.0,0.085509]
[1725298350484,0.20842055,58471.0,58470.0,0.085509]
[1725298350679,0.2,58471.0,58470.0,0.085509]
[1725298350981,0.2,58471.0,58470.0,0.0004]
[1725298350982,0.285508,58471.0,58470.0,0.0004]
[1725298351180,0.08551,58470.0,58468.0,0.085512]
[1725298351480,0.08551,58470.0,58469.0,0.085511]
[1725298351672,0.0455,58474.0,58465.0,0.00025668]
[1725298351878,0.0004,58466.0,58465.0,0.08577268]
[1725298352588,0.285503,58475.0,58465.0,0.08577268]
[1725298352589,0.00025668,58476.0,58475.0,0.085502]
[1725298352887,0.00025668,58476.0,58475.0,0.646702]
[1725298353086,6.8e-07,58476.0,58475.0,1.76390387]
[1725298353277,6.8e-07,58476.0,58475.0,1.84940587]
[1725298353471,6.8e-07,58476.0,58475.0,1.24940587]
[1725298353679,6.8e-07,58476.0,58475.0,1.16390387]
[1725298353878,6.8e-07,58476.0,58475.0,1.76390387]
[1725298354177,6.8e-07,58476.0,58475.0,1.84940587]
[1725298354377,0.0465,58492.0,58489.0,0.085481]
[1725298354574,0.0465,58492.0,58489.0,0.085881]
[1725298355474,0.3748,58490.0,58489.0,0.086881]
[1725298355874,0.014,58490.0,58489.0,0.086881]
[1725298356582,0.028,58490.0,58489.0,0.087881]
[1725298357081,0.017,58490.0,58489.0,0.086881]
[1725298357887,0.008,58490.0,58489.0,0.085881]
[1725298358982,0.006,58490.0,58489.0,0.085881]
[1725298359181,0.003,58490.0,58489.0,0.085881]
[1725298360490,0.003,58490.0,58489.0,1.198801]
[1725298360701,0.00025646,58495.0,58494.0,0.170948]
[1725298360702,4.6e-07,58495.0,58494.0,0.170948]
[1725298360994,4.6e-07,58495.0,58494.0,1.017622]
[1725298361188,4.6e-07,58495.0,58494.0,2.130502]
[1725298361585,4.6e-07,58495.0,58494.0,1.930502]
[1725298362091,0.3608,58509.0,58494.0,1.930502]
[1725298362092,0.3608,58509.0,58508.0,0.085454]
[1725298362397,0.3608,58509.0,58508.0,0.285854]
[1725298363487,0.14315646,58514.0,58508.0,0.285854]
[1725298363488,0.00025646,58514.0,58513.0,0.170892]
[1725298363691,0.0955,58529.0,58525.0,0.085429]
[1725298363990,0.0955,58529.0,58524.0,0.446229]
[1725298364299,0.0955,58529.0,58525.0,0.085428]
[1725298364900,0.0955,58529.0,58513.0,0.3612]
[1725298364901,0.085433,58522.0,58521.0,0.00025646]
[1725298365098,0.2,58522.0,58521.0,0.00025646]
[1725298365989,0.285433,58522.0,58521.0,0.00025646]
[1725298366298,1.398073,58522.0,58521.0,0.00125646]
[1725298366495,0.285433,58522.0,58521.0,0.00125646]
[1725298367588,0.293433,58522.0,58521.0,0.00225646]
[1725298368287,1.406073,58522.0,58521.0,0.00225646]
[1725298368599,1.32064,58522.0,58513.0,0.0004]
[1725298368893,1.32064,58522.0,58508.0,0.3608]
[1725298368894,0.085452,58509.0,58508.0,0.3608]
[1725298369487,0.955452,58509.0,58508.0,0.3608]
[1725298370392,0.955452,58509.0,58508.0,0.3618]
[1725298370991,2.068212,58509.0,58508.0,0.001]
[1725298371686,2.082212,58509.0,58508.0,0.002]
[1725298372003,0.085459,58504.0,58503.0,0.00025646]
[1725298372202,0.285459,58504.0,58503.0,0.00025646]
[1725298373688,0.24469169,58504.0,58503.0,0.00125646]
[1725298375499,0.25869169,58504.0,58503.0,0.00225646]
[1725298375996,0.24569169,58504.0,58503.0,0.00125646]
[1725298376200,0.25969169,58504.0,58503.0,0.00225646]
[1725298377602,0.017,58504.0,58503.0,0.08771746]
[1725298377798,0.016,58504.0,58503.0,0.08771746]
[1725298378309,0.013,58504.0,58503.0,0.08671746]
[1725298378502,0.015,58504.0,58503.0,0.08671746]
[1725298378697,0.016,58504.0,58503.0,0.08771746]
[1725298380002,0.2,58507.0,58506.0,0.085457]
[1725298380310,0.2,58507.0,58506.0,0.086257]
[1725298381311,0.2,58507.0,58506.0,0.1373908]
[1725298381608,0.2,58507.0,58506.0,0.086257]
[1725298382000,0.211,58507.0,58506.0,0.087257]
[1725298382599,0.211,58507.0,58506.0,0.088257]
[1725298382903,0.21,58507.0,58506.0,0.088257]
[1725298383100,0.21,58507.0,58506.0,0.087257]
[1725298383301,0.21,58507.0,58506.0,0.088257]
[1725298383709,0.01,58507.0,58506.0,0.088257]
[1725298384904,0.06130566,58508.0,58507.0,0.085455]
[1725298385109,0.06130566,58508.0,58507.0,0.086255]
[1725298385506,0.00444854,58514.0,58513.0,0.085446]
[1725298385707,0.00444854,58514.0,58513.0,0.086246]
[1725298385901,0.87444854,58514.0,58513.0,0.086246]
[1725298386106,0.9357542,58514.0,58513.0,0.086246]
[1725298386418,0.1511992,58514.0,58513.0,0.086246]
[1725298386600,0.08989354,58514.0,58513.0,0.086246]
[1725298387296,0.00025646,58514.0,58513.0,0.086246]
[1725298387695,0.00025646,58514.0,58513.0,0.087246]
[1725298387696,0.00325646,58514.0,58513.0,0.087246]
[1725298388913,0.00325646,58514.0,58513.0,0.088246]
[1725298390500,0.00025646,58514.0,58513.0,0.087246]
[1725298390704,1.28686646,58514.0,58513.0,0.0018]
[1725298391305,2.15686646,58514.0,58513.0,0.0018]
[1725298391510,2.15686646,58514.0,58513.0,0.0008]
[1725298391705,2.15686646,58514.0,58513.0,0.0018]
[1725298392726,1.55686646,58514.0,58513.0,0.0008]
[1725298392913,1.55686646,58514.0,58513.0,0.0018]
[1725298393713,1.55686646,58514.0,58513.0,0.0028]
[1725298394417,2.15686646,58514.0,58513.0,0.0028]
[1725298395507,1.55686646,58514.0,58513.0,0.0028]
[1725298395711,2.15686646,58514.0,58513.0,0.0028]
[1725298396413,2.24231146,58514.0,58513.0,0.0004624]
[1725298397122,0.170918,58504.0,58503.0,0.00025646]
[1725298397307,0.74047026,58504.0,58503.0,0.00025646]
[1725298397611,1.85367026,58504.0,58503.0,0.00025646]
[1725298398205,1.90397026,58504.0,58503.0,0.00125646]
[1725298398406,1.90497026,58504.0,58503.0,0.00225646]
[1725298399315,0.94417026,58504.0,58503.0,0.00225646]
[1725298400018,1.03137026,58504.0,58503.0,0.00225646]
[1725298400214,1.54417026,58504.0,58503.0,0.00225646]
[1725298400615,0.94417026,58504.0,58503.0,0.00225646]
[1725298400816,0.43137026,58504.0,58503.0,0.00225646]
[1725298401502,1.54417026,58504.0,58503.0,0.00225646]
[1725298401707,1.90497026,58504.0,58503.0,0.00225646]
[1725298402110,1.99042926,58504.0,58503.0,0.00225646]
[1725298402527,1.79042926,58504.0,58503.0,0.00225646]
[1725298402705,1.22022777,58504.0,58503.0,0.00225646]
[1725298403226,1.21147551,58504.0,58503.0,0.00225646]
[1725298403815,1.27278909,58504.0,58503.0,0.00225646]
[1725298405225,0.35548909,58504.0,58503.0,0.00225646]
[1725298405423,0.29417551,58504.0,58503.0,0.00225646]
[1725298406608,0.00871651,58504.0,58503.0,0.00225646]
[1725298406817,0.06131358,58512.0,58511.0,0.085449]
[1725298407116,0.3608,58515.0,58508.0,0.2]
[1725298407322,0.0016,58518.0,58513.0,0.085446]
[1725298407529,0.06155377,58514.0,58513.0,0.085446]
[1725298408807,0.06155377,58514.0,58513.0,1.398166]
[1725298409007,0.0612957,58527.0,58514.0,0.598125]
[1725298409217,0.20856769,58539.0,58526.0,0.3608]
[1725298409218,0.0612957,58538.0,58526.0,0.3608]
[1725298409429,0.0612957,58540.0,58537.0,0.085411]
[1725298409629,0.0612957,58542.0,58536.0,0.2]
[1725298409920,0.3608,58552.0,58540.0,0.085407]
[1725298409921,0.2,58544.0,58540.0,0.085407]
[1725298410313,0.00025622,58545.0,58540.0,0.085407]
[1725298410515,0.00025622,58545.0,58536.0,0.085412]
[1725298410713,0.00025622,58545.0,58544.0,0.2]
[1725298410921,0.00025622,58545.0,58544.0,0.5608]
[1725298412416,0.00025622,58545.0,58544.0,0.5618]
[1725298412824,0.00125622,58545.0,58544.0,0.5618]
[1725298413610,0.00125622,58545.0,58544.0,0.5628]
[1725298414013,0.00125622,58545.0,58544.0,0.3628]
[1725298414621,0.08665622,58545.0,58544.0,0.3628]
[1725298414821,0.28665622,58545.0,58544.0,0.002]
[1725298415021,0.28665622,58545.0,58544.0,0.0028]
[1725298415816,1.15665622,58545.0,58544.0,0.0028]
[1725298416418,1.66909622,58545.0,58544.0,0.0028]
[1725298416619,2.41577167,58545.0,58544.0,0.0028]
[1725298417123,2.35449622,58545.0,58544.0,0.0028]
[1725298418115,0.085416,58534.0,58533.0,0.00025622]
[1725298418321,0.285416,58534.0,58533.0,0.00025622]
[1725298418816,0.085416,58534.0,58533.0,0.00025622]
[1725298419026,0.13139843,58534.0,58525.0,0.5608]
[1725298419327,0.13139843,58533.0,58525.0,0.3608]
[1725298419515,0.085423,58529.0,58525.0,0.3608]
[1725298419831,0.21682243,58528.0,58525.0,0.3608]
[1725298420014,0.13139843,58527.0,58525.0,0.3608]
[1725298420210,0.13139843,58526.0,58525.0,0.3608]
[1725298420920,0.21682543,58526.0,58525.0,0.3608]
[1725298421123,0.21682543,58526.0,58525.0,0.3618]
[1725298421510,0.21682543,58526.0,58525.0,0.001]
[1725298421714,0.084429,58525.0,58521.0,0.00025622]
[1725298422023,0.13339843,58526.0,58521.0,0.00025622]
[1725298422024,0.2,58522.0,58521.0,0.00025622]
[1725298422215,0.41683143,58522.0,58521.0,0.00025622]
[1725298422623,1.28583143,58522.0,58521.0,0.00025622]
[1725298423516,1.22755046,58522.0,58521.0,0.00125622]
[1725298423716,1.28884642,58522.0,58521.0,0.00125622]
[1725298423918,1.20341342,58522.0,58510.0,0.3608]
[1725298424119,0.085439,58519.0,58513.0,0.085446]
[1725298424425,0.21685242,58518.0,58513.0,0.085446]
[1725298424625,0.13141342,58517.0,58513.0,0.085446]
[1725298424819,0.13141342,58516.0,58513.0,0.085446]
[1725298425130,0.07011746,58515.0,58513.0,0.085446]
[1725298425321,0.07011746,58514.0,58513.0,0.085446]
[1725298426228,0.07011746,58514.0,58510.0,0.3638]
[1725298426629,0.07011746,58514.0,58510.0,0.44925]
[1725298426827,0.2,58513.0,58510.0,0.3638]
[1725298427124,0.2,58513.0,58510.0,0.3608]
[1725298427424,0.085449,58511.0,58510.0,0.3608]
[1725298428213,0.085449,58511.0,58510.0,0.3618]
[1725298428421,0.085449,58511.0,58510.0,0.001]
[1725298428619,0.085451,58510.0,58509.0,0.00025622]
[1725298428827,0.285451,58510.0,58509.0,0.00025622]
[1725298429325,0.370902,58510.0,58509.0,0.00025622]
[1725298430433,0.375902,58510.0,58509.0,0.00125622]
[1725298430731,1.31972,58510.0,58491.0,0.446278]
[1725298430923,0.2,58496.0,58491.0,0.3608]
[1725298431921,0.2,58496.0,58491.0,0.3648]
[1725298432424,0.085476,58493.0,58491.0,0.3688]
[1725298432624,0.2,58496.0,58491.0,0.3688]
[1725298432929,0.285472,58496.0,58495.0,0.0008]
[1725298435736,0.20025622,58499.0,58495.0,0.0008]
[1725298435930,0.20025622,58499.0,58498.0,0.0008]
[1725298438040,0.28772322,58499.0,58498.0,0.0008]
[1725298438843,0.29207353,58499.0,58498.0,0.0008]
[1725298439245,0.29607353,58499.0,58498.0,0.0008]
[1725298440543,0.00625622,58499.0,58498.0,0.2008]
[1725298440743,0.00625622,58499.0,58498.0,0.647068]
[1725298440935,0.00625622,58499.0,58498.0,0.447068]
[1725298441137,0.09172322,58499.0,58498.0,0.0008]
[1725298441551,0.00625622,58499.0,58498.0,0.0008]
[1725298442243,0.08772322,58499.0,58498.0,0.0008]
[1725298442445,0.08812322,58499.0,58498.0,0.0038]
[1725298443141,0.09212322,58499.0,58498.0,0.0008]
[1725298443348,0.09012322,58499.0,58498.0,0.0098]
[1725298443641,0.17559022,58499.0,58498.0,0.0098]
[1725298443853,0.170936,58498.0,58488.0,0.00025622]
[1725298444148,0.335881,58489.0,58488.0,0.00025622]
[1725298444342,0.085881,58489.0,58488.0,0.00025622]
[1725298444646,0.0004,58489.0,58488.0,0.00025622]
[1725298445348,0.0004,58489.0,58488.0,0.00725622]
[1725298446047,0.0004,58489.0,58488.0,0.00025622]
[1725298446243,0.0004,58489.0,58488.0,0.00725622]
[1725298446843,0.0004,58489.0,58488.0,0.01425622]
[1725298452449,0.421362,58489.0,58488.0,0.01425622]
[1725298452649,0.470662,58489.0,58488.0,0.01425622]
[1725298454563,0.470662,58489.0,58488.0,0.00625622]
[1725298457657,0.983582,58489.0,58488.0,0.00625622]
[1725298458969,0.470662,58489.0,58488.0,0.00625622]
[1725298459566,0.385181,58489.0,58488.0,0.00625622]
[1725298459766,0.335881,58489.0,58488.0,0.05702579]
[1725298461356,0.335881,58489.0,58488.0,0.00625622]
[1725298461558,0.335881,58489.0,58488.0,0.05734329]
[1725298462660,0.335881,58489.0,58488.0,0.00625622]
[1725298462862,0.696681,58489.0,58488.0,0.00625622]
[1725298463469,1.980563,58489.0,58488.0,0.00625622]
[1725298463759,0.256458,58486.0,58485.0,0.05109767]
[1725298463966,0.085487,58485.0,58480.0,0.05112661]
[1725298464155,0.085487,58485.0,58479.0,0.05112661]
[1725298464156,0.17099,58480.0,58479.0,0.05112661]
[1725298464354,0.17099,58480.0,58478.0,0.05112661]
[1725298464355,0.085496,58479.0,58478.0,0.05112661]
[1725298464566,0.285896,58479.0,58478.0,0.05112661]
[1725298464765,0.798496,58479.0,58478.0,0.05112661]
[1725298464956,1.668496,58479.0,58478.0,0.05112661]
[1725298465261,0.085497,58478.0,58477.0,0.05112661]
[1725298465560,0.284897,58478.0,58477.0,0.05112661]
[1725298465763,0.284897,58478.0,58470.0,0.085509]
[1725298465764,0.085504,58474.0,58470.0,0.085509]
[1725298465963,0.0004,58471.0,58470.0,0.085509]
[1725298466468,0.2004,58471.0,58470.0,0.085509]
[1725298467273,0.0074,58471.0,58470.0,0.086509]
[1725298468065,0.0074,58471.0,58470.0,1.732407]
[1725298468265,0.0074,58471.0,58470.0,1.777807]
[1725298469061,0.0134,58471.0,58470.0,1.777807]
[1725298471166,0.0134,58471.0,58470.0,1.78208297]
[1725298474572,0.0074,58471.0,58470.0,1.78708297]
[1725298475374,0.0004,58471.0,58470.0,1.78608297]
[1725298475580,0.0014,58471.0,58470.0,1.84314286]
[1725298476080,0.0014,58471.0,58470.0,1.79208297]
[1725298476272,0.0014,58471.0,58470.0,0.458309]
[1725298476770,0.286908,58471.0,58470.0,0.458309]
[1725298476974,1.156908,58471.0,58470.0,0.3728]
[1725298477478,1.156908,58471.0,58470.0,0.3748]
[1725298478275,1.156908,58471.0,58470.0,0.3718]
[1725298480373,0.956908,58471.0,58470.0,0.457309]
[1725298482876,0.8714,58471.0,58470.0,0.457309]
[1725298483077,0.0014,58471.0,58470.0,0.457309]
[1725298486279,0.0014,58471.0,58470.0,0.506009]
[1725298486676,0.00025646,58484.0,58479.0,0.085496]
[1725298486874,0.00025646,58484.0,58483.0,0.28549]
[1725298487067,0.00025646,58484.0,58483.0,0.28589]
[1725298488072,0.00325646,58484.0,58483.0,0.28589]
[1725298488281,0.00325646,58484.0,58483.0,0.28689]
[1725298488684,0.00025646,58484.0,58483.0,0.08689]
[1725298488881,0.00325646,58484.0,58483.0,0.08789]
[1725298490380,0.00025646,58484.0,58483.0,0.08689]
[1725298490581,0.00325646,58484.0,58483.0,0.08789]
[1725298491472,0.00325646,58484.0,58483.0,0.09207415]
[1725298491672,0.00325646,58484.0,58483.0,0.08789]
[1725298495986,0.132774,58495.0,58494.0,0.085474]
[1725298496186,0.0943,58495.0,58494.0,0.085474]
[1725298496378,0.0943,58495.0,58494.0,0.085874]
[1725298497182,0.0973,58495.0,58494.0,0.086874]
[1725298497778,0.0973,58495.0,58494.0,0.087874]
[1725298498083,0.10150257,58495.0,58494.0,0.087874]
[1725298498496,0.0973,58495.0,58494.0,0.087874]
[1725298501479,0.0973,58495.0,58494.0,0.086874]
[1725298501886,0.003,58495.0,58494.0,0.257822]
[1725298502085,0.003,58495.0,58494.0,1.731502]
[1725298502303,1e-06,58495.0,58494.0,1.731502]
[1725298502598,0.5624,58522.0,58504.0,0.085458]
[1725298502891,0.085448,58512.0,58511.0,0.3608]
[1725298503298,0.085448,58512.0,58505.0,0.085457]
[1725298503299,0.085457,58506.0,58505.0,0.085457]
[1725298503484,0.0494,58514.0,58510.0,0.085451]
[1725298503485,0.2,58511.0,58510.0,0.085451]
[1725298503684,0.0494,58514.0,58513.0,0.085446]
[1725298503886,0.134845,58514.0,58513.0,0.085846]
[1725298504084,0.134845,58514.0,58513.0,0.085446]
[1725298504788,0.134845,58514.0,58513.0,0.086446]
[1725298504978,0.0494,58514.0,58513.0,0.086446]
[1725298505181,0.05368976,58514.0,58513.0,0.086446]
[1725298506085,0.05368976,58514.0,58513.0,0.087446]
[1725298506305,0.24925646,58519.0,58518.0,0.085439]
[1725298506306,0.00025646,58519.0,58518.0,0.085439]
[1725298506595,0.00025646,58519.0,58518.0,0.798479]
[1725298506987,0.00025646,58519.0,58518.0,0.285839]
[1725298507383,0.00025646,58519.0,58518.0,0.286839]
[1725298507783,0.00025646,58519.0,58518.0,0.086839]
[1725298508288,0.00025646,58519.0,58518.0,0.087839]
[1725298511304,0.00025646,58519.0,58518.0,0.287839]
[1725298513094,0.00025646,58519.0,58518.0,0.648639]
[1725298514789,0.00025646,58519.0,58518.0,0.734078]
[1725298515495,0.00025646,58519.0,58518.0,0.648639]
[1725298516100,0.00025646,58519.0,58518.0,0.734078]
[1725298517493,0.00025646,58519.0,58518.0,0.534078]
[1725298517695,0.28569446,58519.0,58518.0,0.448639]
[1725298518285,0.08569446,58519.0,58518.0,0.448639]
[1725298518692,0.08569446,58519.0,58518.0,0.087839]
[1725298522797,0.089977,58519.0,58518.0,0.087839]
[1725298525796,0.15126931,58519.0,58518.0,0.087839]
[1725298526397,0.15126931,58519.0,58518.0,0.0024]
[1725298527200,1.02126931,58519.0,58518.0,0.0024]
[1725298527701,0.15126931,58519.0,58518.0,0.0024]
[1725298528288,0.22139974,58519.0,58518.0,0.0024]
[1725298528492,0.50683774,58519.0,58518.0,0.0024]
[1725298528896,0.50683774,58519.0,58513.0,0.00025646]
[1725298528897,0.085445,58514.0,58513.0,0.00025646]
[1725298529094,1.30218231,58514.0,58513.0,0.00025646]
[1725298529298,1.30258231,58514.0,58513.0,0.00025646]
[1725298530903,1.66338231,58514.0,58513.0,0.00025646]
[1725298531108,1.30258231,58514.0,58513.0,0.00025646]
[1725298532097,1.21713731,58514.0,58513.0,0.00025646]
[1725298532400,0.06169231,58514.0,58513.0,0.00025646]
[1725298532794,0.0004,58514.0,58513.0,0.08570246]
[1725298533903,0.002,58522.0,58514.0,0.085445]
[1725298534201,0.0487,58533.0,58521.0,0.53207]
[1725298534409,0.3608,58549.0,58532.0,0.5608]
[1725298534600,0.0487,58542.0,58537.0,0.085411]
[1725298535896,0.0487,58542.0,58537.0,0.087411]
[1725298537094,0.2487,58542.0,58537.0,0.087411]
[1725298537296,0.2487,58542.0,58537.0,0.086411]
[1725298538004,0.2487,58542.0,58537.0,0.085411]
[1725298538805,0.085412,58537.0,58534.0,0.00025624]
[1725298539811,0.2,58538.0,58534.0,0.00025624]
[1725298540104,0.0487,58542.0,58538.0,0.085409]
[1725298540312,0.00025624,58545.0,58541.0,0.3608]
[1725298540498,0.00025624,58545.0,58544.0,0.285401]
[1725298540900,0.21054203,58545.0,58544.0,0.285401]
[1725298541607,0.21054203,58545.0,58544.0,0.286401]
[1725298541909,0.21054203,58545.0,58544.0,0.287201]
[1725298542203,0.21054203,58545.0,58544.0,0.288201]
[1725298543310,0.14928045,58545.0,58544.0,0.288201]
[1725298544811,0.14928045,58545.0,58544.0,0.22286498]
[1725298545015,0.23468045,58545.0,58544.0,0.0028]
[1725298548012,0.08565624,58545.0,58544.0,0.0028]
[1725298549708,0.00025624,58545.0,58544.0,0.0028]
[1725298549917,0.00025624,58545.0,58544.0,0.088201]
[1725298550515,0.08565624,58545.0,58544.0,0.0028]
[1725298553912,0.00025624,58545.0,58544.0,0.088201]
[1725298554414,0.00025624,58545.0,58544.0,0.087201]
[1725298554811,0.00025624,58545.0,58544.0,0.088201]
[1725298555218,0.00025624,58545.0,58544.0,0.087201]
[1725298555517,0.00025624,58545.0,58544.0,0.088201]
[1725298555919,0.07034928,58545.0,58544.0,0.087201]
[1725298556127,0.07034928,58545.0,58544.0,0.088201]
[1725298562518,0.14927573,58545.0,58544.0,0.088201]
[1725298562919,0.00025624,58545.0,58544.0,0.088201]
[1725298563521,0.08565624,58545.0,58544.0,0.0028]
[1725298564326,0.42075624,58545.0,58544.0,0.0028]
[1725298565115,2.48859624,58545.0,58544.0,0.0028]
[1725298565317,0.08541,58538.0,58537.0,0.3608]
[1725298565530,0.28541,58538.0,58537.0,0.3608]
[1725298565731,0.085414,58536.0,58531.0,0.44622]
[1725298566922,0.085414,58535.0,58531.0,0.44622]
[1725298567220,0.085414,58535.0,58534.0,0.00325624]
[1725298567718,0.085414,58535.0,58534.0,0.00225624]
[1725298569026,0.170828,58535.0,58534.0,0.00225624]
[1725298569531,0.170828,58535.0,58534.0,0.00125624]
[1725298570730,0.531628,58535.0,58534.0,0.00125624]
[1725298571129,1.283348,58535.0,58534.0,0.00125624]
[1725298575232,1.368762,58535.0,58534.0,0.00125624]
[1725298575534,0.085438,58519.0,58518.0,0.085438]
[1725298575726,0.085438,58519.0,58513.0,0.2]
[1725298575727,0.170877,58519.0,58513.0,0.2]
[1725298576122,0.085439,58518.0,58516.0,0.085442]
[1725298576537,0.2,58518.0,58513.0,0.085446]
[1725298576729,0.085446,58514.0,58511.0,0.00025624]
[1725298577825,0.071446,58514.0,58513.0,0.099446]
[1725298578024,0.14157249,58514.0,58513.0,0.099446]
[1725298578428,0.14157249,58514.0,58513.0,0.085446]
[1725298578626,0.14157249,58514.0,58511.0,0.00025624]
[1725298578627,0.085448,58512.0,58511.0,0.00025624]
[1725298581129,0.093448,58512.0,58511.0,0.00125624]
[1725298581527,0.093448,58512.0,58511.0,0.00225624]
[1725298581933,0.093448,58512.0,58511.0,0.08770524]
[1725298583328,0.07812649,58512.0,58511.0,1.24667424]
[1725298583839,0.07812649,58512.0,58511.0,1.84667424]
[1725298586033,0.008,58512.0,58511.0,1.84667424]
[1725298587936,0.008,58512.0,58511.0,1.85267424]
[1725298588143,0.08959562,58522.0,58521.0,0.085435]
[1725298591442,0.09359562,58522.0,58521.0,0.085435]
[1725298593146,0.16372269,58522.0,58521.0,0.085435]
[1725298593330,0.07828969,58522.0,58521.0,0.085435]
[1725298594142,0.085439,58519.0,58518.0,0.085438]
[1725298594440,0.29359562,58522.0,58520.0,0.085435]
[1725298594842,0.29359562,58522.0,58521.0,0.085435]
[1725298595840,0.28959562,58522.0,58521.0,0.085435]
[1725298597739,0.29359562,58522.0,58521.0,0.085435]
[1725298599451,0.20816262,58522.0,58512.0,0.00417365]
[1725298599643,0.085444,58515.0,58514.0,0.085444]
[1725298600840,0.085444,58515.0,58514.0,0.089444]
[1725298602342,0.085444,58515.0,58514.0,0.092444]
[1725298602743,0.08965825,58515.0,58514.0,0.092444]
[1725298602949,0.08965825,58515.0,58514.0,0.007]
[1725298602950,0.17510225,58515.0,58514.0,0.007]
[1725298603345,0.26750225,58515.0,58514.0,0.007]
[1725298604054,0.26750225,58515.0,58511.0,0.00025624]
[1725298604055,0.085448,58512.0,58511.0,0.00025624]
[1725298604251,0.37935238,58512.0,58511.0,0.00025624]
[1725298604453,0.37975238,58512.0,58511.0,0.00025624]
[1725298605051,0.74055238,58512.0,58511.0,0.00025624]
[1725298605253,0.447648,58512.0,58511.0,0.00725624]
[1725298605550,0.3622,58512.0,58511.0,0.09270524]
[1725298606645,0.3712,58512.0,58511.0,0.08670524]
[1725298606849,0.0104,58512.0,58511.0,0.08670524]
[1725298607051,0.0084,58512.0,58511.0,0.08670524]
[1725298607349,0.0104,58512.0,58511.0,0.08670524]
[1725298607659,0.0084,58512.0,58511.0,0.08670524]
[1725298607856,0.0124,58512.0,58511.0,0.08670524]
[1725298608054,0.0044,58512.0,58511.0,0.08570524]
[1725298608248,0.0074,58512.0,58511.0,0.08570524]
[1725298608953,0.0084,58512.0,58511.0,0.08570524]
[1725298609260,0.093848,58512.0,58511.0,0.08570524]
[1725298609651,0.089848,58512.0,58511.0,0.08570524]
[1725298609850,0.089848,58512.0,58511.0,0.08770524]
[1725298610562,0.085848,58512.0,58511.0,0.08970524]
[1725298611151,0.088848,58512.0,58511.0,0.08770524]
[1725298611364,0.092848,58512.0,58511.0,0.08570524]
[1725298612157,0.093848,58512.0,58511.0,0.08570524]
[1725298612757,0.092848,58512.0,58511.0,0.08570524]
[1725298613667,0.0074,58512.0,58511.0,0.08570524]
[1725298613866,0.0074,58512.0,58511.0,0.44650524]
[1725298614962,0.0024,58512.0,58511.0,0.44650524]
[1725298615257,0.0024,58512.0,58511.0,0.44850524]
[1725298616167,0.0024,58512.0,58511.0,0.45050524]
[1725298616168,0.0004,58512.0,58511.0,0.45050524]
[1725298616361,0.07053434,58512.0,58511.0,0.45050524]
[1725298618767,0.07053434,58512.0,58511.0,0.53595424]
[1725298620367,0.07053434,58512.0,58511.0,0.08970524]
[1725298620674,0.07053434,58512.0,58511.0,0.45479143]
[1725298621267,0.07053434,58512.0,58511.0,0.09399143]
[1725298621463,0.07053434,58512.0,58511.0,0.45479143]
[1725298621661,0.07053434,58512.0,58511.0,0.45050524]
[1725298621877,0.15598234,58512.0,58511.0,0.00325624]
[1725298622769,0.15598234,58512.0,58511.0,0.00225624]
[1725298623368,0.15598234,58512.0,58511.0,0.00125624]
[1725298623369,0.085848,58512.0,58511.0,0.00125624]
[1725298623677,0.0074,58512.0,58511.0,0.08570524]
[1725298625067,0.0024,58512.0,58511.0,0.08670524]
[1725298625470,0.0024,58512.0,58511.0,0.96022524]
[1725298625866,0.0014,58512.0,58511.0,0.96022524]
[1725298626073,0.0014,58512.0,58511.0,0.44750524]
[1725298626581,0.0004,58512.0,58511.0,0.44850524]
[1725298626879,0.0014,58512.0,58511.0,0.44750524]
[1725298628072,0.0004,58512.0,58511.0,0.44850524]
[1725298628872,0.0004,58512.0,58511.0,0.44950524]
[1725298629370,0.085848,58512.0,58511.0,0.44750524]
[1725298629570,0.085848,58512.0,58511.0,0.44850524]
[1725298629973,0.085848,58512.0,58511.0,0.08770524]
[1725298630468,0.0054,58512.0,58511.0,0.64750524]
[1725298630667,0.0074,58512.0,58511.0,0.28570524]
[1725298630869,0.0074,58512.0,58511.0,0.44650524]
[1725298631172,0.0024,58512.0,58511.0,0.44650524]
[1725298631379,0.0064,58512.0,58511.0,0.44650524]
[1725298631579,0.091848,58512.0,58511.0,0.08570524]